bitfinex-derivatives/quotes_SOLF0:USTF0_20250211
["timestamp","ask_amount","ask_price","bid_price","bid_amount"]
[1739274501775,8.40038992,202.96,202.89,8.40038992]
[1739274502280,4.9272,202.93,202.89,13.32838992]
[1739274502680,4.9272,202.93,202.89,8.43787909]
[1739274503279,4.9273,202.92,202.89,8.43787909]
[1739274503582,8.40038992,202.94,202.89,0.03748917]
[1739274503780,8.40038992,202.92,202.89,0.03748917]
[1739274504479,13.32808992,202.9,202.89,0.03748917]
[1739274511892,8.40038992,202.9,202.79,9.92038992]
[1739274512092,4.7449,203.0,202.77,3.0057]
[1739274512093,4.9296,202.83,202.78,4.9306]
[1739274512294,8.40038992,202.82,202.77,11.40608992]
[1739274512514,8.40038992,202.82,202.77,3.0057]
[1739274513098,8.43209627,202.82,202.77,3.04216933]
[1739274513292,8.43209627,202.82,202.77,7.97306933]
[1739274513695,0.03170635,202.82,202.77,16.37345925]
[1739274515097,0.03170635,202.82,202.77,11.44255925]
[1739274515299,0.03170635,202.82,202.79,8.40038992]
[1739274515901,8.43209627,202.82,202.77,11.44255925]
[1739274516093,8.43209627,202.82,202.77,3.04216933]
[1739274517801,4.9302,202.8,202.77,3.04216933]
[1739274518000,8.43209627,202.82,202.77,3.04216933]
[1739274518399,13.36179627,202.82,202.77,3.04216933]
[1739274519200,13.36179627,202.82,202.77,7.97306933]
[1739274519504,0.03170635,202.82,202.77,11.44255925]
[1739274519900,0.03170635,202.82,202.79,4.9304]
[1739274520302,0.03170635,202.82,202.79,13.33078992]
[1739274520601,0.03170635,202.82,202.79,8.40038992]
[1739274520803,8.40038992,202.9,202.81,8.40038992]
[1739274521002,8.40038992,202.9,202.85,8.40038992]
[1739274521399,8.40038992,202.92,202.85,8.40038992]
[1739274521804,4.9276,202.91,202.85,13.32908992]
[1739274522004,8.40038992,202.92,202.86,0.03291423]
[1739274522204,8.40038992,202.94,202.89,8.40038992]
[1739274522404,4.9268,202.94,202.89,8.40038992]
[1739274522606,8.40038992,202.96,202.89,8.4324276]
[1739274522802,8.40038992,202.96,202.89,13.3602276]
[1739274522803,4.9265,202.95,202.89,13.3602276]
[1739274523407,8.40038992,202.96,202.89,8.4324276]
[1739274523600,4.9271,202.93,202.89,0.03203768]
[1739274526312,4.9278,202.9,202.89,0.03203768]
[1739274529408,4.9275,202.92,202.89,0.03203768]
[1739274529711,13.11221574,202.97,202.89,0.03203768]
[1739274529909,4.9271,202.93,202.89,0.03203768]
[1739274530512,13.11221574,202.97,202.89,0.03203768]
[1739274530907,4.9266,202.95,202.89,0.03203768]
[1739274531102,13.11221574,202.97,202.89,0.03203768]
[1739274531511,4.9276,202.91,202.89,0.03203768]
[1739274532907,4.9273,202.92,202.89,0.03203768]
[1739274533323,13.11221574,202.97,202.89,0.03203768]
[1739274533513,4.9268,202.95,202.89,0.03203768]
[1739274533811,13.11221574,203.0,202.89,0.03203768]
[1739274534011,13.11221574,203.0,202.87,13.11221574]
[1739274534208,13.11221574,203.0,202.92,0.0379058]
[1739274534909,13.11221574,202.97,202.92,0.0379058]
[1739274535215,13.11221574,202.97,202.85,3.127]
[1739274535510,13.11221574,202.97,202.92,0.03541095]
[1739274536013,4.927,202.93,202.92,0.03541095]
[1739274538110,4.9267,202.95,202.92,0.03541095]
[1739274538608,4.927,202.94,202.92,0.03541095]
[1739274539212,1.4934,202.99,202.92,0.03541095]
[1739274540813,4.927,202.93,202.92,0.03541095]
[1739274541010,1.4934,202.99,202.92,0.03541095]
[1739274541216,13.11221574,203.0,202.92,0.03541095]
[1739274541611,13.11221574,203.0,202.92,4.96261095]
[1739274542114,13.11221574,203.0,202.92,0.03541095]
[1739274542312,13.11221574,203.0,202.94,4.9267]
[1739274543316,4.926,202.98,202.94,4.9267]
[1739274543519,13.11221574,203.03,202.96,4.9262]
[1739274543814,13.11221574,203.03,202.93,14.59771574]
[1739274543815,4.9251,203.01,202.93,14.59771574]
[1739274544011,4.9251,203.01,202.97,4.95713742]
[1739274544412,4.9248,203.03,202.97,0.03113742]
[1739274544609,13.11221574,203.06,202.97,0.03113742]
[1739274545210,4.9242,203.05,203.0,4.9253]
[1739274545419,13.11221574,203.06,202.97,0.03113742]
[1739274546518,4.9246,203.03,202.99,4.9256]
[1739274546813,13.11221574,203.06,202.99,4.9256]
[1739274547019,4.9245,203.04,202.99,4.9256]
[1739274547519,13.11221574,203.06,202.99,4.9256]
[1739274547722,4.9244,203.04,202.99,4.9256]
[1739274547919,191.0,203.11,203.0,4.9252]
[1739274547920,13.11221574,203.09,203.0,4.9252]
[1739274548221,4.9241,203.06,202.96,13.11221574]
[1739274548416,13.11221574,203.09,203.02,0.03746873]
[1739274549323,4.9246,203.03,203.02,0.03746873]
[1739274560522,13.11221574,203.06,203.02,0.03746873]
[1739274560727,4.9244,203.04,203.02,0.03746873]
[1739274561730,4.9246,203.03,203.02,0.03746873]
[1739274563631,13.30867237,203.03,203.02,0.03746873]
[1739274571138,8.38407237,203.03,203.02,0.03746873]
[1739274571843,13.30867237,203.03,203.02,0.03746873]
[1739274574547,13.30867237,203.03,203.02,0.03746873]
[1739274597061,8.38407237,203.03,202.94,1.5234]
[1739274597260,8.38407237,202.97,202.94,1.5234]
[1739274597960,8.38407237,202.97,202.89,8.38407237]
[1739274597961,8.38407237,202.95,202.88,6.75189248]
[1739274598161,8.38407237,202.91,202.88,6.75189248]
[1739274598357,8.38407237,202.95,202.89,8.41919242]
[1739274598554,8.38407237,202.99,202.93,8.38407237]
[1739274598755,0.03737308,202.94,202.9,1.4941]
[1739274599062,4.9258,202.99,202.94,4.9267]
[1739274599259,4.9258,202.99,202.95,8.38407237]
[1739274600067,4.9258,202.99,202.95,8.41750615]
[1739274600763,4.9253,203.01,202.95,8.41750615]
[1739274601468,4.9254,203.0,202.95,8.41750615]
[1739274601772,8.38407237,203.03,202.95,8.41750615]
[1739274602069,4.9255,203.0,202.95,8.41750615]
[1739274602363,8.38407237,203.01,202.95,8.41750615]
[1739274603065,4.9262,202.97,202.95,0.03343378]
[1739274603658,4.9263,202.96,202.95,0.03343378]
[1739274605867,8.38407237,202.97,202.95,0.03343378]
[1739274606164,2.9898,203.05,202.95,0.03343378]
[1739274606165,4.9258,202.99,202.95,0.03343378]
[1739274606566,4.9247,203.03,202.98,4.9257]
[1739274606871,4.9247,203.03,202.97,8.38407237]
[1739274606872,8.38407237,203.04,202.97,8.38407237]
[1739274607065,8.38407237,203.04,202.98,0.03411705]
[1739274607266,8.38407237,203.02,202.98,0.03411705]
[1739274608765,4.9254,203.0,202.98,0.03411705]
[1739274609070,8.38407237,203.02,202.98,0.03411705]
[1739274609570,4.9248,203.03,202.98,0.03411705]
[1739274610470,13.30847237,203.04,202.98,0.03411705]
[1739274610673,4.9244,203.04,202.99,8.38407237]
[1739274611069,8.38407237,203.06,202.99,8.38407237]
[1739274611269,4.9237,203.07,203.02,4.9248]
[1739274611569,8.38407237,203.08,203.02,4.9248]
[1739274611767,13.30757237,203.08,203.02,0.03321691]
[1739274612167,8.38407237,203.08,203.02,0.03321691]
[1739274612473,8.38407237,203.06,203.02,0.03321691]
[1739274612661,8.38407237,203.06,202.99,8.38407237]
[1739274612872,4.9244,203.04,203.02,0.03140803]
[1739274613069,8.38407237,203.04,203.02,0.03140803]
[1739274614572,4.9246,203.03,203.02,0.03140803]
[1739274619579,8.38407237,203.04,202.96,1.5264]
[1739274619777,8.38407237,202.97,202.92,1.5588]
[1739274619977,8.38407237,202.95,202.91,1.4917]
[1739274620277,8.38407237,202.93,202.9,1.493]
[1739274620673,4.9275,202.91,202.9,1.493]
[1739274621274,13.31137237,202.93,202.9,1.493]
[1739274622180,8.38407237,202.93,202.9,1.493]
[1739274623182,13.31117237,202.93,202.9,1.493]
[1739274623983,8.38407237,202.93,202.9,1.493]
[1739274624383,0.03119149,202.94,202.9,1.493]
[1739274625272,0.03119149,202.94,202.9,6.4207]
[1739274625481,8.38407237,202.93,202.9,1.493]
[1739274626183,13.31107237,202.93,202.89,0.03373971]
[1739274626879,8.38407237,202.93,202.89,0.03373971]
[1739274627081,4.9273,202.92,202.89,0.03373971]
[1739274627580,8.38407237,202.93,202.89,0.03373971]
[1739274628177,8.38407237,202.93,202.89,4.96163971]
[1739274628581,13.31117237,202.93,202.89,4.96163971]
[1739274630084,8.38407237,202.93,202.89,0.03373971]
[1739274631884,4.9274,202.92,202.89,0.03373971]
[1739274632380,8.38407237,202.93,202.89,0.03373971]
[1739274632890,13.31127237,202.93,202.89,0.03373971]
[1739274633087,8.38407237,202.93,202.89,0.03373971]
[1739274633586,4.9273,202.92,202.89,0.03373971]
[1739274633887,8.38407237,202.93,202.89,0.03373971]
[1739274634086,13.31117237,202.93,202.89,0.03373971]
[1739274635588,8.38407237,202.93,202.89,4.96163971]
[1739274635887,4.95799149,202.94,202.89,0.03373971]
[1739274636084,0.03119149,202.94,202.89,0.03373971]
[1739274636285,0.03119149,202.94,202.9,4.9276]
[1739274637488,4.95799149,202.94,202.89,0.03373971]
[1739274637686,8.38407237,202.93,202.89,0.03373971]
[1739274638191,13.31127237,202.93,202.89,0.03373971]
[1739274639190,4.9278,202.9,202.89,0.03373971]
[1739274640887,8.41526386,202.94,202.89,0.03373971]
[1739274641094,0.03119149,202.94,202.89,4.96173971]
[1739274641291,0.03119149,202.94,202.89,13.34581208]
[1739274641494,4.95799149,202.94,202.89,13.34571208]
[1739274641793,0.03119149,202.94,202.89,13.34571208]
[1739274643095,0.03119149,202.94,202.9,4.9276]
[1739274644695,0.03119149,202.94,202.89,8.41781208]
[1739274644895,0.03119149,202.94,202.91,4.9273]
[1739274645596,0.03119149,202.94,202.89,8.41781208]
[1739274645798,0.03119149,202.94,202.9,4.9277]
[1739274646898,8.41526386,202.94,202.9,4.9277]
[1739274647689,13.34206386,202.94,202.89,4.96163971]
[1739274648101,8.38407237,202.92,202.89,0.03373971]
[1739274649402,8.41526386,202.94,202.89,0.03373971]
[1739274649709,13.34206386,202.94,202.89,4.96173971]
[1739274651910,8.41526386,202.94,202.89,4.96173971]
[1739274652107,4.927,202.93,202.89,0.03373971]
[1739274653003,13.34206386,202.94,202.89,4.96163971]
[1739274653410,8.41526386,202.94,202.89,0.03373971]
[1739274653909,4.9271,202.93,202.89,0.03373971]
[1739274654411,0.03119149,202.94,202.9,4.9277]
[1739274654607,0.03119149,202.94,202.91,8.38407237]
[1739274661713,4.95799149,202.94,202.91,8.38407237]
[1739274662511,0.03119149,202.94,202.91,8.38407237]
[1739274663115,8.38407237,203.02,202.93,8.38407237]
[1739274663324,8.38407237,203.02,202.95,8.38407237]
[1739274663518,8.38407237,202.98,202.91,8.38407237]
[1739274663818,8.38407237,202.96,202.91,8.38407237]
[1739274664020,13.31047237,202.96,202.9,4.9275]
[1739274664419,13.31047237,202.96,202.91,0.03584886]
[1739274665023,13.31047237,202.96,202.91,4.96334886]
[1739274665225,8.38407237,202.96,202.91,4.96334886]
[1739274665522,8.38407237,202.96,202.91,0.03584886]
[1739274665824,8.38407237,202.96,202.91,8.41992123]
[1739274666224,8.38407237,202.96,202.92,4.9272]
[1739274667623,4.9259,202.98,202.92,4.9272]
[1739274667624,13.30997237,202.98,202.92,4.9272]
[1739274667922,4.9261,202.97,202.91,13.34742123]
[1739274668324,4.9264,202.96,202.91,13.34742123]
[1739274668523,8.38407237,202.98,202.92,4.9272]
[1739274668819,13.31007237,202.98,202.92,4.9272]
[1739274669024,8.38407237,202.98,202.92,4.9272]
[1739274669818,8.38407237,202.98,202.91,8.41992123]
[1739274670023,13.31007237,202.98,202.92,4.9272]
[1739274671125,8.38407237,202.98,202.92,4.9272]
[1739274671322,4.9262,202.97,202.92,4.9272]
[1739274671819,4.9262,202.97,202.91,8.41992123]
[1739274672717,4.9261,202.97,202.91,8.41992123]
[1739274673726,4.9261,202.97,202.92,4.9271]
[1739274675829,4.9254,203.0,202.95,8.38407237]
[1739274676027,8.38407237,203.02,202.95,8.38407237]
[1739274676230,8.38407237,203.02,202.95,8.41790156]
[1739274677732,4.9253,203.0,202.95,8.41790156]
[1739274678932,4.9259,202.98,202.95,0.03382919]
[1739274679133,13.30997237,202.98,202.95,0.03382919]
[1739274682341,13.30967237,203.0,202.95,0.03382919]
[1739274682538,4.9256,203.0,202.95,8.41790156]
[1739274683635,4.9251,203.01,202.97,8.38407237]
[1739274684038,4.9251,203.01,202.97,8.41833509]
[1739274685436,66.16405698,203.06,202.99,8.38407237]
[1739274685641,66.16405698,203.06,203.01,8.38407237]
[1739274686137,66.16405698,203.06,203.01,8.41809378]
[1739274686138,4.9241,203.05,203.01,8.41809378]
[1739274686943,66.16405698,203.06,203.01,13.34319378]
[1739274687142,66.16405698,203.06,203.01,8.41809378]
[1739274688140,66.16405698,203.06,203.01,13.34309378]
[1739274688343,4.9238,203.07,203.03,8.38407237]
[1739274688643,9.93787237,203.1,203.03,8.38407237]
[1739274688843,4.9238,203.07,203.03,8.38407237]
[1739274690445,4.9238,203.07,203.03,13.30867237]
[1739274691247,4.9238,203.07,203.03,8.38407237]
[1739274693144,8.38407237,203.08,203.01,8.41809378]
[1739274694046,4.9239,203.06,203.01,8.41809378]
[1739274694250,8.38407237,203.12,203.05,8.38407237]
[1739274694551,4.9238,203.07,203.06,0.0352992]
[1739274695152,8.38407237,203.1,203.06,0.0352992]
[1739274695445,8.38407237,203.12,203.06,0.0352992]
[1739274695950,4.9234,203.09,203.06,0.0352992]
[1739274697651,4.9236,203.07,203.06,0.0352992]
[1739274699451,4.9232,203.09,203.06,0.0352992]
[1739274699754,8.38407237,203.12,203.06,0.0352992]
[1739274700954,4.923,203.1,203.06,0.0352992]
[1739274701456,8.38407237,203.12,203.06,0.0352992]
[1739274701657,4.9233,203.09,203.06,0.0352992]
[1739274703258,4.9236,203.07,203.06,0.0352992]
[1739274703957,4.9234,203.08,203.06,0.0352992]
[1739274707161,4.9236,203.07,203.06,0.0352992]
[1739274707463,8.38407237,203.1,203.06,0.0352992]
[1739274708365,4.9234,203.08,203.06,0.0352992]
[1739274710470,4.9236,203.07,203.06,0.0352992]
[1739274713968,4.9236,203.07,202.94,195.5821]
[1739274713969,4.9248,203.03,202.99,8.38407237]
[1739274714369,8.38407237,203.04,202.97,8.38407237]
[1739274714574,8.38407237,203.02,202.97,8.38407237]
[1739274714873,8.38407237,203.02,202.95,8.38407237]
[1739274715072,8.38407237,203.0,202.95,8.38407237]
[1739274715369,0.03251741,203.01,202.96,4.9592935]
[1739274715779,13.30917237,203.02,202.96,4.9263]
[1739274716073,0.03423128,203.01,202.96,4.96262413]
[1739274716278,4.95943128,203.01,202.96,0.03632413]
[1739274717174,0.03423128,203.01,202.97,8.38407237]
[1739274719682,4.95933128,203.01,202.97,8.38407237]
[1739274720079,0.03423128,203.01,202.97,8.38407237]
[1739274721983,4.95953128,203.01,202.97,8.38407237]
[1739274722179,4.95953128,203.01,202.96,0.03632413]
[1739274722487,0.03423128,203.01,202.96,0.03632413]
[1739274722787,4.9255,203.0,202.96,0.03632413]
[1739274723184,4.95933128,203.01,202.96,0.03632413]
[1739274723585,0.03423128,203.01,202.97,8.38407237]
[1739274724092,0.03423128,203.01,202.99,8.38407237]
[1739274725886,0.03423128,203.01,203.0,4.9253]
[1739274727885,0.03423128,203.01,202.99,8.38407237]
[1739274728287,0.03423128,203.01,202.97,9.94317237]
[1739274728684,4.95943128,203.01,202.97,8.38407237]
[1739274728889,0.03423128,203.01,202.97,8.38407237]
[1739274729189,4.95953128,203.01,202.97,8.38407237]
[1739274729681,0.03423128,203.01,202.97,8.38407237]
[1739274730592,4.95943128,203.01,202.97,8.38407237]
[1739274732492,0.03423128,203.01,202.97,8.38407237]
[1739274733799,0.03423128,203.01,202.99,8.38407237]
[1739274736398,4.9253,203.0,202.97,8.38407237]
[1739274737693,4.9253,203.0,202.96,0.03632413]
[1739274741001,8.38407237,203.0,202.96,0.03632413]
[1739274742499,4.926,202.98,202.96,0.03632413]
[1739274742703,8.38407237,202.98,202.96,0.03632413]
[1739274743205,4.9261,202.97,202.96,0.03632413]
[1739274746096,13.30997237,202.98,202.96,0.03632413]
[1739274746301,8.38407237,203.0,202.96,0.03632413]
[1739274746502,0.03423128,203.01,202.96,0.03632413]
[1739274746699,4.95933128,203.01,202.96,0.03632413]
[1739274747301,0.03423128,203.01,202.98,4.9257]
[1739274749903,0.03423128,203.01,202.97,13.31007237]
[1739274751399,4.95933128,203.01,202.97,13.31007237]
[1739274752706,0.03423128,203.01,202.99,8.38407237]
[1739274753408,0.03423128,203.01,203.0,4.9253]
[1739274754506,0.03423128,203.01,202.99,13.30957237]
[1739274755207,0.03423128,203.01,202.99,8.38407237]
[1739274755605,0.03423128,203.01,202.99,13.30947237]
[1739274756706,0.03423128,203.01,203.0,4.9253]
[1739274762505,0.03423128,203.01,202.99,13.30957237]
[1739274762810,0.03423128,203.01,202.99,8.38407237]
[1739274763306,0.03423128,203.01,202.99,13.30947237]
[1739274764709,0.03423128,203.01,203.0,4.9253]
[1739274765211,1.6092,203.14,202.99,8.38407237]
[1739274765407,1.6092,203.14,203.08,8.38407237]
[1739274765804,4.9229,203.11,203.08,8.38407237]
[1739274766007,8.38407237,203.11,203.04,8.38407237]
[1739274766505,8.38407237,203.11,203.05,0.0338386]
[1739274767208,8.38407237,203.13,203.06,8.38407237]
[1739274767907,8.38407237,203.11,203.05,0.0338386]
[1739274768609,4.9233,203.09,203.05,0.0338386]
[1739274771112,4.9233,203.09,203.05,8.41791097]
[1739274774413,4.9229,203.1,203.05,8.41791097]
[1739274775914,4.9232,203.09,203.05,8.41791097]
[1739274778623,4.9229,203.1,203.05,8.41791097]
[1739274779216,4.9227,203.11,203.05,8.41791097]
[1739274779521,4.9227,203.11,203.07,8.38407237]
[1739274780821,4.9229,203.1,203.07,8.38407237]
[1739274782322,4.9229,203.1,203.05,13.34191097]
[1739274783322,4.9233,203.09,203.05,8.41791097]
[1739274783622,8.38407237,203.11,203.05,8.41791097]
[1739274783823,8.38407237,203.11,203.05,0.0338386]
[1739274784122,4.9234,203.08,203.05,8.41791097]
[1739274784822,4.9237,203.07,203.05,8.41791097]
[1739274785422,8.38407237,203.11,203.05,8.41791097]
[1739274785622,4.9235,203.08,203.05,8.41791097]
[1739274786921,4.9237,203.07,203.05,8.41791097]
[1739274787730,8.38407237,203.11,203.05,8.41791097]
[1739274787925,4.9234,203.08,203.05,8.41791097]
[1739274788423,8.38407237,203.11,203.05,8.41791097]
[1739274788629,4.9233,203.09,203.05,8.41791097]
[1739274789930,13.30797237,203.06,203.05,0.0338386]
[1739274797448,8.38407237,203.06,202.99,8.38407237]
[1739274798847,0.03420676,203.05,203.0,0.03752562]
[1739274800148,4.9251,203.01,203.0,0.03752562]
[1739274800743,0.03420676,203.05,203.0,0.03752562]
[1739274800950,4.9247,203.03,203.0,0.03752562]
[1739274801548,4.9251,203.01,203.0,0.03752562]
[1739274802448,4.9251,203.02,203.0,0.03752562]
[1739274803255,8.38407237,203.04,203.0,0.03752562]
[1739274803554,4.9251,203.01,203.0,0.03752562]
[1739274831971,8.38407237,203.02,203.0,0.03752562]
[1739274832178,0.03420676,203.05,203.0,8.42159799]
[1739274832369,0.03420676,203.05,203.03,8.38407237]
[1739274832574,0.03420676,203.05,203.04,4.9244]
[1739274832776,0.03420676,203.05,203.01,13.00577237]
[1739274833075,0.03420676,203.05,203.01,4.6217]
[1739274833379,0.03420676,203.05,203.01,17.93067237]
[1739274835078,0.03420676,203.05,203.03,8.38407237]
[1739274835679,8.38407237,203.13,203.03,8.38407237]
[1739274835877,8.38407237,203.13,203.07,13.30747237]
[1739274836076,8.38407237,203.13,203.07,8.38407237]
[1739274836380,8.38407237,203.13,203.05,8.38407237]
[1739274836576,4.9225,203.12,203.06,4.9237]
[1739274836777,8.38407237,203.11,203.05,8.38407237]
[1739274836977,8.38407237,203.11,203.07,0.03107983]
[1739274838070,8.38407237,203.13,203.07,0.03107983]
[1739274838676,4.9225,203.12,203.07,0.03107983]
[1739274840375,8.38407237,203.13,203.07,0.03107983]
[1739274840578,4.9227,203.11,203.07,0.03107983]
[1739274841382,13.30647237,203.13,203.07,4.95467983]
[1739274841783,13.30647237,203.13,203.07,13.3387522]
[1739274842084,8.38407237,203.13,203.07,13.3387522]
[1739274842283,4.9225,203.12,203.07,13.3387522]
[1739274844886,4.9227,203.11,203.07,0.03107983]
[1739274845183,8.38407237,203.11,203.07,0.03107983]
[1739274845384,8.38407237,203.09,203.07,0.03107983]
[1739274845884,4.9234,203.09,203.07,0.03107983]
[1739274846580,4.923,203.1,203.07,0.03107983]
[1739274846985,8.38407237,203.13,203.07,0.03107983]
[1739274847184,4.9227,203.11,203.07,0.03107983]
[1739274847879,4.9229,203.1,203.07,0.03107983]
[1739274849187,4.9227,203.11,203.07,0.03107983]
[1739274849382,8.38407237,203.13,203.07,0.03107983]
[1739274849583,4.9231,203.1,203.07,0.03107983]
[1739274849784,8.38407237,203.13,203.07,0.03107983]
[1739274850190,4.923,203.1,203.07,0.03107983]
[1739274850589,8.38407237,203.13,203.07,0.03107983]
[1739274850790,4.9234,203.08,203.07,0.03107983]
[1739274854693,4.923,203.1,203.07,0.03107983]
[1739274854992,8.38407237,203.13,203.07,0.03107983]
[1739274855186,4.9232,203.09,203.07,0.03107983]
[1739274856692,8.38407237,203.13,203.07,0.03107983]
[1739274856992,4.9234,203.08,203.07,0.03107983]
[1739274858290,8.38407237,203.13,203.07,0.03107983]
[1739274858493,4.9233,203.09,203.07,0.03107983]
[1739274865102,4.9226,203.12,203.07,8.4151522]
[1739274865400,8.38407237,203.15,203.09,8.38407237]
[1739274865802,4.9216,203.16,203.09,8.38407237]
[1739274865997,8.38407237,203.17,203.09,8.38407237]
[1739274866201,8.38407237,203.17,203.1,0.03251898]
[1739274866398,4.9221,203.14,203.1,0.03251898]
[1739274866699,8.38407237,203.17,203.11,8.38407237]
[1739274867202,8.38407237,203.19,203.13,8.38407237]
[1739274867603,8.38407237,203.19,203.14,0.03384166]
[1739274867999,8.38407237,203.17,203.14,0.03384166]
[1739274869100,4.9217,203.15,203.14,0.03384166]
[1739274872607,149.63134205,203.22,203.14,0.03384166]
[1739274872608,4.9212,203.18,203.14,0.03384166]
[1739274872808,4.9212,203.18,203.16,8.38407237]
[1739274874307,4.9212,203.17,203.14,8.41791403]
[1739274875412,4.9215,203.16,203.14,8.41791403]
[1739274876210,8.38407237,203.21,203.14,8.41791403]
[1739274876410,4.9213,203.17,203.14,8.41791403]
[1739274877414,4.9215,203.16,203.14,0.03384166]
[1739274877916,8.38407237,203.19,203.14,0.03384166]
[1739274878217,4.9213,203.17,203.14,0.03384166]
[1739274878914,4.9213,203.17,203.14,8.41791403]
[1739274879115,4.9212,203.17,203.14,8.41791403]
[1739274879315,8.38407237,203.19,203.14,8.41791403]
[1739274879512,8.38407237,203.21,203.14,8.41791403]
[1739274879713,4.921,203.18,203.14,8.41791403]
[1739274880810,4.921,203.18,203.14,13.33981403]
[1739274881017,4.921,203.18,203.14,8.41791403]
[1739274883216,8.38407237,203.21,203.15,4.9216]
[1739274883718,8.38407237,203.21,203.14,8.41791403]
[1739274884012,8.38407237,203.23,203.16,8.38407237]
[1739274884719,4.9204,203.21,203.16,13.30547237]
[1739274885622,4.9204,203.21,203.16,8.38407237]
[1739274885823,4.9204,203.21,203.17,4.9212]
[1739274886614,4.9204,203.21,203.16,8.38407237]
[1739274886615,8.38407237,203.23,203.16,8.38407237]
[1739274886913,8.38407237,203.25,203.18,13.30477237]
[1739274887314,4.9202,203.22,203.18,13.30477237]
[1739274887518,8.38407237,203.25,203.18,8.38407237]
[1739274887824,4.9203,203.21,203.18,8.38407237]
[1739274888020,8.38407237,203.25,203.18,8.38407237]
[1739274888222,8.38407237,203.25,203.19,4.9207]
[1739274888423,4.9198,203.23,203.19,4.9207]
[1739274888724,82.27730257,203.26,203.19,4.9207]
[1739274889823,8.38407237,203.27,203.19,4.9207]
[1739274890127,4.9197,203.24,203.18,8.38407237]
[1739274890523,8.38407237,203.27,203.18,8.38407237]
[1739274890723,65.59327092,203.28,203.18,8.38407237]
[1739274890724,8.38407237,203.25,203.18,8.38407237]
[1739274892827,4.9201,203.22,203.18,8.38407237]
[1739274893728,4.9204,203.21,203.18,8.38407237]
[1739274895626,8.38407237,203.25,203.18,8.38407237]
[1739274895826,4.9207,203.19,203.18,8.38407237]
[1739274901034,4.9212,203.18,203.16,8.38407237]
[1739274901233,8.38407237,203.23,203.16,8.38407237]
[1739274901430,8.38407237,203.21,203.14,8.41791403]
[1739274901626,4.9217,203.16,203.14,8.41791403]
[1739274904435,4.9217,203.15,203.14,8.41791403]
[1739274905435,8.38407237,203.21,203.14,8.41791403]
[1739274907137,8.38407237,203.23,203.16,8.38407237]
[1739274907739,4.9212,203.17,203.16,8.38407237]
[1739274910035,4.9208,203.19,203.16,8.38407237]
[1739274910232,8.38407237,203.27,203.18,8.38407237]
[1739274911441,8.38407237,203.27,203.19,4.9207]
[1739274911737,1.4647,203.28,203.19,4.9207]
[1739274911936,1.4647,203.28,203.18,8.38407237]
[1739274912136,4.919,203.27,203.23,8.38407237]
[1739274912334,3.0811,203.35,203.15,4.5841]
[1739274912335,8.38407237,203.31,203.25,8.38407237]
[1739274912741,8.38407237,203.31,203.26,0.03532533]
[1739274913442,13.30207237,203.31,203.26,0.03532533]
[1739274913741,8.38407237,203.31,203.26,0.03532533]
[1739274914152,4.9183,203.29,203.26,0.03532533]
[1739274914839,4.9186,203.28,203.26,0.03532533]
[1739274915544,8.38407237,203.31,203.26,0.03532533]
[1739274917142,8.38407237,203.35,203.29,8.38407237]
[1739274917544,4.9175,203.33,203.29,8.38407237]
[1739274917745,8.38407237,203.37,203.29,8.38407237]
[1739274918043,4.9169,203.35,203.29,8.41796005]
[1739274918243,8.38407237,203.37,203.29,8.41796005]
[1739274918744,41.98419953,203.38,203.33,8.38407237]
[1739274919141,4.9171,203.34,203.33,8.41816722]
[1739274919543,4.9171,203.34,203.33,0.03409485]
[1739274921142,4.917,203.35,203.33,8.41816722]
[1739274922442,4.9163,203.38,203.33,8.41816722]
[1739274922643,8.38407237,203.41,203.35,8.38407237]
[1739274923145,4.9164,203.37,203.35,8.38407237]
[1739274923541,8.38407237,203.41,203.35,8.38407237]
[1739274923748,4.9166,203.36,203.35,8.38407237]
[1739274924145,8.38407237,203.41,203.35,8.38407237]
[1739274924347,4.9161,203.38,203.35,8.38407237]
[1739274924741,4.9166,203.36,203.35,8.38407237]
[1739274925747,8.38407237,203.41,203.33,8.41816722]
[1739274926045,8.38407237,203.39,203.33,8.41816722]
[1739274926238,4.917,203.35,203.33,8.41816722]
[1739274926444,8.38407237,203.39,203.33,0.03409485]
[1739274926642,8.38407237,203.37,203.33,0.03409485]
[1739274926844,4.9171,203.34,203.33,0.03409485]
[1739274928949,4.9171,203.34,203.33,9.485e-05]
[1739274929948,6.491,203.34,203.33,9.485e-05]
[1739274932843,4.9193,203.25,203.23,8.38407237]
[1739274933048,8.38407237,203.27,203.19,8.38407237]
[1739274933647,8.38407237,203.25,203.17,8.38407237]
[1739274933851,8.38407237,203.23,203.15,12.96817237]
[1739274934058,4.9205,203.2,203.19,0.03277066]
[1739274935152,4.9202,203.21,203.19,0.03277066]
[1739274935453,0.03586401,203.23,203.19,0.03277066]